[Event "Titled Tuesday Blitz October 26 2021"]
[White "Obolenskikh, Dmitry"]
[Black "Kamsky, Gata"]
[WhiteFideId "4156013"]
[BlackFideId "2000024"]
[WhiteElo "2541"]
[BlackElo "2603"]
[Result "1/2-1/2"]
[Round "08"]
[TimeControl "180+1"]
[Date "2021.10.26"]
[WhiteClock "0:00:52"]
[BlackClock "0:00:59"]

1. Nf3 {[%clk 0:03:00]}  g6 {[%clk 0:02:58]} 2. e4 {[%clk 0:03:00]}  Bg7 {[%clk 0:02:58]} 3. d4 {[%clk 0:03:01]}  b6 {[%clk 0:02:58]} 4. c4 {[%clk 0:02:58]}  Bb7 {[%clk 0:02:58]} 5. Nc3 {[%clk 0:02:59]}  d6 {[%clk 0:02:58]} 6. Be2 {[%clk 0:02:57]}  e6 {[%clk 0:02:56]} 7. O-O {[%clk 0:02:56]}  Nd7 {[%clk 0:02:56]} 8. Be3 {[%clk 0:02:55]}  Ngf6 {[%clk 0:02:51]} 9. Nd2 {[%clk 0:02:54]}  O-O {[%clk 0:02:49]} 10. d5 {[%clk 0:02:54]}  Re8 {[%clk 0:02:48]} 11. Qc2 {[%clk 0:02:44]}  c6 {[%clk 0:02:47]} 12. dxc6 {[%clk 0:02:38]}  Bxc6 {[%clk 0:02:47]} 13. Rfd1 {[%clk 0:02:29]}  Rc8 {[%clk 0:02:46]} 14. Nb3 {[%clk 0:02:25]}  Qc7 {[%clk 0:02:44]} 15. Nd4 {[%clk 0:02:23]}  a6 {[%clk 0:02:30]} 16. Nxc6 {[%clk 0:02:20]}  Qxc6 {[%clk 0:02:29]} 17. Rac1 {[%clk 0:02:17]}  Nc5 {[%clk 0:02:16]} 18. f3 {[%clk 0:02:14]}  Red8 {[%clk 0:02:07]} 19. b4 {[%clk 0:02:05]}  Ncd7 {[%clk 0:02:05]} 20. Qb3 {[%clk 0:02:05]}  Ne5 {[%clk 0:02:01]} 21. Na4 {[%clk 0:01:57]}  Ned7 {[%clk 0:01:47]} 22. b5 {[%clk 0:01:38]}  Qc7 {[%clk 0:01:37]} 23. bxa6 {[%clk 0:01:38]}  Nc5 {[%clk 0:01:37]} 24. Nxc5 {[%clk 0:01:31]}  bxc5 {[%clk 0:01:37]} 25. Qb7 {[%clk 0:01:18]}  Ne8 {[%clk 0:01:30]} 26. Rb1 {[%clk 0:01:14]}  Qa5 {[%clk 0:01:22]} 27. Qb5 {[%clk 0:01:00]}  Qxa2 {[%clk 0:01:04]} 28. Rd2 {[%clk 0:00:59]}  Qa3 {[%clk 0:01:02]} 29. Rd3 {[%clk 0:00:56]}  Qa2 {[%clk 0:01:01]} 30. Rd2 {[%clk 0:00:52]}  Qa3 {[%clk 0:01:01]} 31. Rd3 {[%clk 0:00:52]}  Qa2 {[%clk 0:00:59]} 32. Rd2 {[%clk 0:00:52]} 1/2-1/2


[Site "https://www.chess.com"]

[Event "Titled Tuesday Blitz October 26 2021"]
[White "Obregon, Andres Carlos"]
[Black "Rostovtsev, Dmitry"]
[WhiteFideId "111724"]
[BlackFideId "34278320"]
[WhiteElo "2572"]
[BlackElo "2294"]
[Result "1-0"]
[Round "08"]
[TimeControl "180+1"]
[Date "2021.10.26"]
[WhiteClock "0:01:23"]
[BlackClock "0:00:15"]

1. c4 {[%clk 0:03:00]}  c6 {[%clk 0:02:58]} 2. Nf3 {[%clk 0:02:58]}  d5 {[%clk 0:02:58]} 3. cxd5 {[%clk 0:02:55]}  cxd5 {[%clk 0:02:59]} 4. d4 {[%clk 0:02:55]}  Nf6 {[%clk 0:02:59]} 5. Nc3 {[%clk 0:02:51]}  Nc6 {[%clk 0:02:58]} 6. Bf4 {[%clk 0:02:48]}  a6 {[%clk 0:02:58]} 7. Rc1 {[%clk 0:02:44]}  Bf5 {[%clk 0:02:54]} 8. Ne5 {[%clk 0:02:39]}  e6 {[%clk 0:02:48]} 9. e3 {[%clk 0:02:36]}  Nxe5 {[%clk 0:02:45]} 10. Bxe5 {[%clk 0:02:33]}  Bd6 {[%clk 0:02:44]} 11. Bxf6 {[%clk 0:02:20]}  gxf6 {[%clk 0:02:31]} 12. Bd3 {[%clk 0:02:18]}  Bg6 {[%clk 0:02:31]} 13. h4 {[%clk 0:02:15]}  Rc8 {[%clk 0:02:17]} 14. O-O {[%clk 0:02:07]}  Bxd3 {[%clk 0:02:02]} 15. Qxd3 {[%clk 0:02:06]}  f5 {[%clk 0:02:03]} 16. g3 {[%clk 0:02:06]}  Rg8 {[%clk 0:01:58]} 17. Nxd5 {[%clk 0:01:45]}  Rxc1 {[%clk 0:01:42]} 18. Rxc1 {[%clk 0:01:42]}  Bxg3 {[%clk 0:01:01]} 19. Nf6+ {[%clk 0:01:40]}  Qxf6 {[%clk 0:00:49]} 20. Rc8+ {[%clk 0:01:39]}  Kd7 {[%clk 0:00:42]} 21. Rxg8 {[%clk 0:01:40]}  Bd6 {[%clk 0:00:37]} 22. Qc2 {[%clk 0:01:36]}  Bc7 {[%clk 0:00:28]} 23. Qa4+ {[%clk 0:01:35]}  b5 {[%clk 0:00:21]} 24. Qxa6 {[%clk 0:01:34]}  Qxh4 {[%clk 0:00:19]} 25. Qxb5+ {[%clk 0:01:31]}  Ke7 {[%clk 0:00:15]} 26. Qb7 {[%clk 0:01:24]}  Qh2+ {[%clk 0:00:14]} 27. Kf1 {[%clk 0:01:24]}  Qh1+ {[%clk 0:00:15]} 28. Qxh1 {[%clk 0:01:23]} 1-0


[Site "https://www.chess.com"]

[Event "Titled Tuesday Blitz October 26 2021"]
[White "Rozen, Eytan"]
[Black "Cunjalo, Faris"]
[WhiteFideId "2816750"]
[BlackFideId "14410710"]
[WhiteElo "2115"]
[BlackElo "2234"]
[Result "0-1"]
[Round "08"]
[TimeControl "180+1"]
[Date "2021.10.26"]
[WhiteClock "0:00:01"]
[BlackClock "0:00:44"]

1. c4 {[%clk 0:03:00]}  e6 {[%clk 0:02:55]} 2. g3 {[%clk 0:02:55]}  d5 {[%clk 0:02:56]} 3. Bg2 {[%clk 0:02:56]}  Nf6 {[%clk 0:02:56]} 4. Nf3 {[%clk 0:02:56]}  dxc4 {[%clk 0:02:57]} 5. O-O {[%clk 0:02:54]}  a6 {[%clk 0:02:57]} 6. a4 {[%clk 0:02:35]}  c5 {[%clk 0:02:44]} 7. Na3 {[%clk 0:02:25]}  Nc6 {[%clk 0:02:38]} 8. Nxc4 {[%clk 0:02:24]}  Be7 {[%clk 0:02:37]} 9. d3 {[%clk 0:02:15]}  O-O {[%clk 0:02:36]} 10. a5 {[%clk 0:02:14]}  Nd5 {[%clk 0:02:30]} 11. Bd2 {[%clk 0:02:07]}  Bd7 {[%clk 0:02:30]} 12. e4 {[%clk 0:01:54]}  Ndb4 {[%clk 0:02:30]} 13. Bc3 {[%clk 0:01:47]}  Bf6 {[%clk 0:02:27]} 14. e5 {[%clk 0:01:27]}  Be7 {[%clk 0:02:26]} 15. Nb6 {[%clk 0:01:26]}  Rb8 {[%clk 0:02:25]} 16. d4 {[%clk 0:01:26]}  cxd4 {[%clk 0:02:21]} 17. Nxd4 {[%clk 0:01:24]}  Nxd4 {[%clk 0:02:05]} 18. Nxd7 {[%clk 0:01:12]}  Qxd7 {[%clk 0:02:02]} 19. Qxd4 {[%clk 0:01:12]}  Qxd4 {[%clk 0:01:53]} 20. Bxd4 {[%clk 0:01:13]}  Nc2 {[%clk 0:01:38]} 21. Rad1 {[%clk 0:01:10]}  Nxd4 {[%clk 0:01:38]} 22. Rxd4 {[%clk 0:01:10]}  b6 {[%clk 0:01:39]} 23. axb6 {[%clk 0:00:44]}  Rxb6 {[%clk 0:01:40]} 24. Ra4 {[%clk 0:00:42]}  Rd8 {[%clk 0:01:37]} 25. Bf3 {[%clk 0:00:35]}  Rd2 {[%clk 0:01:32]} 26. Rc1 {[%clk 0:00:26]}  g6 {[%clk 0:00:59]} 27. Rc8+ {[%clk 0:00:17]}  Bd8 {[%clk 0:00:53]} 28. b4 {[%clk 0:00:10]}  Kg7 {[%clk 0:00:53]} 29. h4 {[%clk 0:00:09]}  Rb5 {[%clk 0:00:44]} 30. Rxa6 {[%clk 0:00:08]}  Bb6 {[%clk 0:00:45]} 31. Kh1 {[%clk 0:00:02]}  Rxf2 {[%clk 0:00:43]} 32. Bc6 {[%clk 0:00:01]}  Rxb4 {[%clk 0:00:44]} 33. Raa8 {[%clk 0:00:01]}  Rb1# {[%clk 0:00:44]} 0-1


[Site "https://www.chess.com"]

[Event "Titled Tuesday Blitz October 26 2021"]
[White "Shipov, Sergei"]
[Black "Anuj Shrivatri"]
[WhiteFideId "4113624"]
[BlackFideId "35070924"]
[WhiteElo "2803"]
[BlackElo "2038"]
[Result "1-0"]
[Round "08"]
[TimeControl "180+1"]
[Date "2021.10.26"]
[WhiteClock "0:00:56"]
[BlackClock "0:00:02"]

1. d4 {[%clk 0:03:00]}  Nf6 {[%clk 0:02:56]} 2. c4 {[%clk 0:03:01]}  e6 {[%clk 0:02:55]} 3. Nc3 {[%clk 0:03:01]}  Bb4 {[%clk 0:02:55]} 4. Qc2 {[%clk 0:03:01]}  O-O {[%clk 0:02:54]} 5. a3 {[%clk 0:03:01]}  Bxc3+ {[%clk 0:02:54]} 6. Qxc3 {[%clk 0:03:02]}  d5 {[%clk 0:02:55]} 7. e3 {[%clk 0:02:57]}  b6 {[%clk 0:02:47]} 8. cxd5 {[%clk 0:02:57]}  exd5 {[%clk 0:02:26]} 9. Bd3 {[%clk 0:02:57]}  Ba6 {[%clk 0:02:25]} 10. Ne2 {[%clk 0:02:56]}  Ne4 {[%clk 0:02:19]} 11. Qc2 {[%clk 0:02:56]}  Bxd3 {[%clk 0:02:12]} 12. Qxd3 {[%clk 0:02:56]}  a5 {[%clk 0:02:04]} 13. f3 {[%clk 0:02:46]}  Nd6 {[%clk 0:01:44]} 14. O-O {[%clk 0:02:45]}  f5 {[%clk 0:01:32]} 15. Nf4 {[%clk 0:02:39]}  c6 {[%clk 0:01:31]} 16. Ne6 {[%clk 0:02:39]}  Qe7 {[%clk 0:01:29]} 17. Nxf8 {[%clk 0:02:39]}  Qxf8 {[%clk 0:01:30]} 18. Bd2 {[%clk 0:02:30]}  Qe8 {[%clk 0:01:17]} 19. b3 {[%clk 0:02:27]}  a4 {[%clk 0:01:08]} 20. Bb4 {[%clk 0:02:26]}  Nb5 {[%clk 0:01:05]} 21. Rac1 {[%clk 0:02:12]}  axb3 {[%clk 0:00:31]} 22. Qxb3 {[%clk 0:02:12]}  Na6 {[%clk 0:00:21]} 23. a4 {[%clk 0:02:05]}  Nbc7 {[%clk 0:00:19]} 24. Bd6 {[%clk 0:01:59]}  Rb8 {[%clk 0:00:15]} 25. Rfe1 {[%clk 0:01:55]}  Qd7 {[%clk 0:00:13]} 26. Be5 {[%clk 0:01:55]}  Rb7 {[%clk 0:00:12]} 27. Qc3 {[%clk 0:01:45]}  c5 {[%clk 0:00:11]} 28. dxc5 {[%clk 0:01:37]}  Nxc5 {[%clk 0:00:12]} 29. a5 {[%clk 0:01:34]}  N7e6 {[%clk 0:00:12]} 30. axb6 {[%clk 0:01:32]}  Rxb6 {[%clk 0:00:13]} 31. Red1 {[%clk 0:01:31]}  Rb3 {[%clk 0:00:10]} 32. Qc2 {[%clk 0:01:25]}  g6 {[%clk 0:00:04]} 33. Qd2 {[%clk 0:01:12]}  Rb5 {[%clk 0:00:02]} 34. Rb1 {[%clk 0:01:07]}  Rxb1 {[%clk 0:00:01]} 35. Rxb1 {[%clk 0:01:07]}  Kf7 {[%clk 0:00:01]} 36. h4 {[%clk 0:01:03]}  h6 {[%clk 0:00:01]} 37. Ba1 {[%clk 0:01:00]}  g5 {[%clk 0:00:01]} 38. Qc3 {[%clk 0:01:00]}  Kg6 {[%clk 0:00:01]} 39. Qf6+ {[%clk 0:01:00]}  Kh5 {[%clk 0:00:01]} 40. hxg5 {[%clk 0:00:59]}  hxg5 {[%clk 0:00:01]} 41. Kf2 {[%clk 0:00:58]}  Nd3+ {[%clk 0:00:01]} 42. Ke2 {[%clk 0:00:58]}  Nef4+ {[%clk 0:00:02]} 43. exf4 {[%clk 0:00:57]}  Nxf4+ {[%clk 0:00:02]} 44. Kd2 {[%clk 0:00:56]} 1-0


[Site "https://www.chess.com"]

[Event "Titled Tuesday Blitz October 26 2021"]
[White "Siddharth, Jagadeesh"]
[Black "Siva Mahadevan"]
[WhiteFideId "5818320"]
[BlackFideId "25043153"]
[WhiteElo "2127"]
[BlackElo "2203"]
[Result "1/2-1/2"]
[Round "08"]
[TimeControl "180+1"]
[Date "2021.10.26"]
[WhiteClock "0:00:11"]
[BlackClock "0:00:08"]

1. d4 {[%clk 0:03:00]}  Nf6 {[%clk 0:02:59]} 2. c4 {[%clk 0:03:01]}  g6 {[%clk 0:02:58]} 3. g3 {[%clk 0:03:00]}  Bg7 {[%clk 0:02:58]} 4. Bg2 {[%clk 0:03:01]}  O-O {[%clk 0:02:58]} 5. Nc3 {[%clk 0:03:01]}  d6 {[%clk 0:02:59]} 6. e3 {[%clk 0:03:00]}  Nbd7 {[%clk 0:02:56]} 7. Nge2 {[%clk 0:03:00]}  e5 {[%clk 0:02:56]} 8. O-O {[%clk 0:03:01]}  Re8 {[%clk 0:02:46]} 9. Qc2 {[%clk 0:03:00]}  exd4 {[%clk 0:02:43]} 10. exd4 {[%clk 0:02:58]}  Nb6 {[%clk 0:02:41]} 11. b3 {[%clk 0:02:53]}  Bf5 {[%clk 0:02:38]} 12. Qd2 {[%clk 0:02:53]}  Ne4 {[%clk 0:02:36]} 13. Nxe4 {[%clk 0:02:53]}  Bxe4 {[%clk 0:02:37]} 14. Bxe4 {[%clk 0:02:45]}  Rxe4 {[%clk 0:02:38]} 15. f3 {[%clk 0:02:46]}  Re7 {[%clk 0:02:30]} 16. Bb2 {[%clk 0:02:44]}  Qd7 {[%clk 0:02:28]} 17. Rae1 {[%clk 0:02:37]}  Rae8 {[%clk 0:02:25]} 18. Nc1 {[%clk 0:02:37]}  Qf5 {[%clk 0:02:20]} 19. Nd3 {[%clk 0:02:23]}  h5 {[%clk 0:02:08]} 20. Kg2 {[%clk 0:02:16]}  Kh7 {[%clk 0:01:59]} 21. d5 {[%clk 0:01:37]}  Bxb2 {[%clk 0:01:16]} 22. Nxb2 {[%clk 0:01:38]}  Rxe1 {[%clk 0:01:13]} 23. Rxe1 {[%clk 0:01:38]}  Rxe1 {[%clk 0:01:14]} 24. Qxe1 {[%clk 0:01:39]}  Qc2+ {[%clk 0:01:14]} 25. Qf2 {[%clk 0:01:39]}  Qb1 {[%clk 0:01:15]} 26. Na4 {[%clk 0:01:27]}  Nxa4 {[%clk 0:01:07]} 27. bxa4 {[%clk 0:01:28]}  b6 {[%clk 0:01:07]} 28. Qe2 {[%clk 0:01:25]}  Kg7 {[%clk 0:01:03]} 29. Qd2 {[%clk 0:01:17]}  a5 {[%clk 0:01:00]} 30. Qc3+ {[%clk 0:01:16]}  Kg8 {[%clk 0:00:57]} 31. Qb3 {[%clk 0:01:08]}  Qc1 {[%clk 0:00:50]} 32. Qb5 {[%clk 0:00:45]}  Qc2+ {[%clk 0:00:45]} 33. Kh3 {[%clk 0:00:45]}  Qf2 {[%clk 0:00:20]} 34. Qe8+ {[%clk 0:00:34]}  Kg7 {[%clk 0:00:20]} 35. Qe4 {[%clk 0:00:34]}  Qxa2 {[%clk 0:00:15]} 36. Qd4+ {[%clk 0:00:34]}  Kg8 {[%clk 0:00:15]} 37. f4 {[%clk 0:00:31]}  Qxa4 {[%clk 0:00:14]} 38. Kh4 {[%clk 0:00:28]}  Qd7 {[%clk 0:00:14]} 39. Kg5 {[%clk 0:00:27]}  Kh7 {[%clk 0:00:09]} 40. h3 {[%clk 0:00:13]}  Qxh3 {[%clk 0:00:07]} 41. Kf6 {[%clk 0:00:10]}  Qd7 {[%clk 0:00:06]} 42. Qe3 {[%clk 0:00:07]}  Kg8 {[%clk 0:00:05]} 43. Kg5 {[%clk 0:00:07]}  Qf5+ {[%clk 0:00:04]} 44. Kh6 {[%clk 0:00:07]}  Qc8 {[%clk 0:00:04]} 45. Qd4 {[%clk 0:00:05]}  Qf8+ {[%clk 0:00:04]} 46. Kg5 {[%clk 0:00:05]}  a4 {[%clk 0:00:05]} 47. f5 {[%clk 0:00:05]}  Qe7+ {[%clk 0:00:04]} 48. f6 {[%clk 0:00:05]}  Qe5+ {[%clk 0:00:05]} 49. Qxe5 {[%clk 0:00:06]}  dxe5 {[%clk 0:00:06]} 50. Kh6 {[%clk 0:00:07]}  a3 {[%clk 0:00:06]} 51. g4 {[%clk 0:00:07]}  hxg4 {[%clk 0:00:06]} 52. d6 {[%clk 0:00:08]}  cxd6 {[%clk 0:00:06]} 53. c5 {[%clk 0:00:09]}  dxc5 {[%clk 0:00:07]} 54. Kg5 {[%clk 0:00:09]}  a2 {[%clk 0:00:07]} 55. Kh6 {[%clk 0:00:10]}  a1=Q {[%clk 0:00:08]} 56. Kg5 {[%clk 0:00:11]}  Qc1+ {[%clk 0:00:09]} 57. Kh4 {[%clk 0:00:11]}  Qf4 {[%clk 0:00:08]} 1/2-1/2


[Site "https://www.chess.com"]

[Event "Titled Tuesday Blitz October 26 2021"]
[White "Solon, Nathan"]
[Black "Sadhwani, Raunak"]
[WhiteFideId "2017229"]
[BlackFideId "35093487"]
[WhiteElo "2627"]
[BlackElo "2517"]
[Result "0-1"]
[Round "08"]
[TimeControl "180+1"]
[Date "2021.10.26"]
[WhiteClock "0:00:08"]
[BlackClock "0:00:32"]

1. b3 {[%clk 0:03:00]}  e5 {[%clk 0:02:59]} 2. Bb2 {[%clk 0:03:01]}  Nc6 {[%clk 0:03:00]} 3. e3 {[%clk 0:03:00]}  Nf6 {[%clk 0:03:00]} 4. c4 {[%clk 0:02:59]}  d5 {[%clk 0:02:51]} 5. cxd5 {[%clk 0:02:59]}  Nxd5 {[%clk 0:02:52]} 6. a3 {[%clk 0:02:59]}  Be6 {[%clk 0:02:51]} 7. Qc2 {[%clk 0:02:57]}  Qd7 {[%clk 0:02:51]} 8. Nf3 {[%clk 0:02:57]}  f6 {[%clk 0:02:48]} 9. b4 {[%clk 0:02:56]}  O-O-O {[%clk 0:02:45]} 10. b5 {[%clk 0:02:56]}  Na5 {[%clk 0:02:44]} 11. d4 {[%clk 0:02:56]}  e4 {[%clk 0:02:43]} 12. Nfd2 {[%clk 0:02:56]}  f5 {[%clk 0:02:41]} 13. Nc3 {[%clk 0:02:57]}  b6 {[%clk 0:02:27]} 14. Be2 {[%clk 0:02:51]}  Kb8 {[%clk 0:02:22]} 15. O-O {[%clk 0:02:50]}  g5 {[%clk 0:02:18]} 16. Rfc1 {[%clk 0:02:43]}  Bd6 {[%clk 0:02:13]} 17. Nxd5 {[%clk 0:02:29]}  Bxd5 {[%clk 0:02:14]} 18. Bc3 {[%clk 0:02:28]}  Nb7 {[%clk 0:02:14]} 19. Bc4 {[%clk 0:02:28]}  Qf7 {[%clk 0:02:10]} 20. Bb2 {[%clk 0:02:23]}  Na5 {[%clk 0:02:02]} 21. Bxd5 {[%clk 0:02:18]}  Qxd5 {[%clk 0:02:03]} 22. Bc3 {[%clk 0:02:14]}  Nb7 {[%clk 0:01:59]} 23. Bb4 {[%clk 0:02:13]}  Qf7 {[%clk 0:01:41]} 24. Nc4 {[%clk 0:02:01]}  Rhe8 {[%clk 0:01:33]} 25. Nxd6 {[%clk 0:01:48]}  cxd6 {[%clk 0:01:34]} 26. a4 {[%clk 0:01:47]}  Rc8 {[%clk 0:01:21]} 27. Qd2 {[%clk 0:01:47]}  f4 {[%clk 0:01:19]} 28. a5 {[%clk 0:01:44]}  bxa5 {[%clk 0:01:19]} 29. Bxa5 {[%clk 0:01:44]}  f3 {[%clk 0:01:18]} 30. b6 {[%clk 0:01:39]}  Qd7 {[%clk 0:01:09]} 31. bxa7+ {[%clk 0:01:07]}  Ka8 {[%clk 0:01:09]} 32. h3 {[%clk 0:00:49]}  g4 {[%clk 0:01:00]} 33. g3 {[%clk 0:00:45]}  gxh3 {[%clk 0:00:57]} 34. Kh2 {[%clk 0:00:44]}  h5 {[%clk 0:00:57]} 35. Bb6 {[%clk 0:00:37]}  h4 {[%clk 0:00:57]} 36. Rg1 {[%clk 0:00:34]}  Rc6 {[%clk 0:00:55]} 37. Qb2 {[%clk 0:00:30]}  Rec8 {[%clk 0:00:56]} 38. Rac1 {[%clk 0:00:13]}  hxg3+ {[%clk 0:00:56]} 39. fxg3 {[%clk 0:00:11]}  f2 {[%clk 0:00:57]} 40. Rgf1 {[%clk 0:00:10]}  Rxc1 {[%clk 0:00:45]} 41. Rxc1 {[%clk 0:00:11]}  Rf8 {[%clk 0:00:45]} 42. Rf1 {[%clk 0:00:09]}  Qf5 {[%clk 0:00:37]} 43. d5 {[%clk 0:00:08]}  Qf3 {[%clk 0:00:35]} 44. Rxf2 {[%clk 0:00:08]}  Qxf2+ {[%clk 0:00:36]} 45. Qxf2 {[%clk 0:00:08]}  Rxf2+ {[%clk 0:00:37]} 46. Kxh3 {[%clk 0:00:08]}  Rb2 {[%clk 0:00:32]} 0-1


[Site "https://www.chess.com"]

[Event "Titled Tuesday Blitz October 26 2021"]
[White "Sorokin, Aleksey"]
[Black "Le, Tuan Minh"]
[WhiteFideId "24176460"]
[BlackFideId "12401153"]
[WhiteElo "2476"]
[BlackElo "2450"]
[Result "1-0"]
[Round "08"]
[TimeControl "180+1"]
[Date "2021.10.26"]
[WhiteClock "0:00:32"]
[BlackClock "0:00:01"]

1. e4 {[%clk 0:03:00]}  c5 {[%clk 0:03:00]} 2. Nf3 {[%clk 0:03:00]}  Nf6 {[%clk 0:03:00]} 3. Nc3 {[%clk 0:02:59]}  d5 {[%clk 0:03:00]} 4. exd5 {[%clk 0:02:58]}  Nxd5 {[%clk 0:03:01]} 5. Bb5+ {[%clk 0:02:58]}  Bd7 {[%clk 0:03:02]} 6. Qe2 {[%clk 0:02:55]}  Nf6 {[%clk 0:02:56]} 7. d4 {[%clk 0:02:46]}  cxd4 {[%clk 0:02:56]} 8. Nxd4 {[%clk 0:02:45]}  a6 {[%clk 0:02:51]} 9. Bxd7+ {[%clk 0:02:40]}  Qxd7 {[%clk 0:02:52]} 10. Be3 {[%clk 0:02:39]}  e6 {[%clk 0:02:41]} 11. O-O-O {[%clk 0:02:39]}  Qc7 {[%clk 0:02:40]} 12. g4 {[%clk 0:02:37]}  Bb4 {[%clk 0:02:34]} 13. g5 {[%clk 0:02:37]}  Bxc3 {[%clk 0:02:18]} 14. gxf6 {[%clk 0:02:35]}  Bxd4 {[%clk 0:02:18]} 15. Bxd4 {[%clk 0:02:30]}  gxf6 {[%clk 0:02:19]} 16. Rd3 {[%clk 0:02:03]}  Nc6 {[%clk 0:02:00]} 17. Rhd1 {[%clk 0:01:53]}  Nxd4 {[%clk 0:01:08]} 18. Rxd4 {[%clk 0:01:53]}  Ke7 {[%clk 0:01:08]} 19. Rd7+ {[%clk 0:01:21]}  Qxd7 {[%clk 0:01:08]} 20. Rxd7+ {[%clk 0:01:22]}  Kxd7 {[%clk 0:01:09]} 21. Qf3 {[%clk 0:01:22]}  Rhd8 {[%clk 0:00:20]} 22. Qxf6 {[%clk 0:01:18]}  Ke8 {[%clk 0:00:21]} 23. Qh8+ {[%clk 0:01:15]}  Ke7 {[%clk 0:00:21]} 24. Qxh7 {[%clk 0:01:15]}  Rd5 {[%clk 0:00:18]} 25. Qh4+ {[%clk 0:01:14]}  Kd7 {[%clk 0:00:18]} 26. Qb4 {[%clk 0:01:10]}  Kc7 {[%clk 0:00:15]} 27. Qf4+ {[%clk 0:01:08]}  Kc6 {[%clk 0:00:13]} 28. Qxf7 {[%clk 0:01:08]}  Rd6 {[%clk 0:00:10]} 29. h4 {[%clk 0:01:05]}  Rad8 {[%clk 0:00:10]} 30. b3 {[%clk 0:01:04]}  R8d7 {[%clk 0:00:09]} 31. Qf3+ {[%clk 0:01:04]}  Kc7 {[%clk 0:00:08]} 32. h5 {[%clk 0:01:03]}  e5 {[%clk 0:00:09]} 33. Qc3+ {[%clk 0:01:03]}  Rc6 {[%clk 0:00:05]} 34. Qxe5+ {[%clk 0:01:03]}  Kd8 {[%clk 0:00:06]} 35. h6 {[%clk 0:00:58]}  Re7 {[%clk 0:00:06]} 36. Qb8+ {[%clk 0:00:53]}  Rc8 {[%clk 0:00:05]} 37. Qd6+ {[%clk 0:00:49]}  Rd7 {[%clk 0:00:05]} 38. Qb6+ {[%clk 0:00:43]}  Rcc7 {[%clk 0:00:04]} 39. f4 {[%clk 0:00:36]}  Rh7 {[%clk 0:00:01]} 40. Qg6 {[%clk 0:00:32]} 1-0


[Site "https://www.chess.com"]

[Event "Titled Tuesday Blitz October 26 2021"]
[White "Svane, Rasmus"]
[Black "Zierk, Steven"]
[WhiteFideId "4657101"]
[BlackFideId "2034255"]
[WhiteElo "2643"]
[BlackElo "2494"]
[Result "0-1"]
[Round "08"]
[TimeControl "180+1"]
[Date "2021.10.26"]
[WhiteClock "0:00:02"]
[BlackClock "0:00:17"]

1. Nf3 {[%clk 0:03:00]}  d5 {[%clk 0:02:59]} 2. g3 {[%clk 0:03:01]}  Nf6 {[%clk 0:02:58]} 3. Bg2 {[%clk 0:03:01]}  Bg4 {[%clk 0:02:58]} 4. O-O {[%clk 0:03:00]}  e6 {[%clk 0:02:57]} 5. h3 {[%clk 0:03:01]}  Bxf3 {[%clk 0:02:53]} 6. Bxf3 {[%clk 0:03:02]}  c5 {[%clk 0:02:53]} 7. c4 {[%clk 0:02:55]}  Nc6 {[%clk 0:02:53]} 8. e3 {[%clk 0:02:44]}  Be7 {[%clk 0:02:50]} 9. cxd5 {[%clk 0:02:45]}  exd5 {[%clk 0:02:50]} 10. Nc3 {[%clk 0:02:41]}  O-O {[%clk 0:02:37]} 11. d4 {[%clk 0:02:41]}  cxd4 {[%clk 0:02:35]} 12. exd4 {[%clk 0:02:42]}  Qb6 {[%clk 0:02:31]} 13. Be3 {[%clk 0:02:06]}  Rfd8 {[%clk 0:02:02]} 14. Rb1 {[%clk 0:01:41]}  Rac8 {[%clk 0:01:55]} 15. Re1 {[%clk 0:01:41]}  h6 {[%clk 0:01:50]} 16. a3 {[%clk 0:01:32]}  Na5 {[%clk 0:01:48]} 17. Bf4 {[%clk 0:01:32]}  Bf8 {[%clk 0:01:42]} 18. Be5 {[%clk 0:01:31]}  Nc4 {[%clk 0:01:37]} 19. Bxf6 {[%clk 0:01:30]}  Qxf6 {[%clk 0:01:37]} 20. Nxd5 {[%clk 0:01:23]}  Qf5 {[%clk 0:01:18]} 21. Nc3 {[%clk 0:00:44]}  Nxb2 {[%clk 0:01:12]} 22. Rxb2 {[%clk 0:00:27]}  Rxc3 {[%clk 0:01:11]} 23. Bxb7 {[%clk 0:00:26]}  Qxh3 {[%clk 0:01:07]} 24. Bg2 {[%clk 0:00:18]}  Qf5 {[%clk 0:01:03]} 25. Rb3 {[%clk 0:00:15]}  Rxb3 {[%clk 0:00:58]} 26. Qxb3 {[%clk 0:00:16]}  Rxd4 {[%clk 0:00:31]} 27. Re8 {[%clk 0:00:16]}  Qc5 {[%clk 0:00:28]} 28. Bf3 {[%clk 0:00:14]}  Rd2 {[%clk 0:00:23]} 29. Qe3 {[%clk 0:00:12]}  Qxe3 {[%clk 0:00:19]} 30. Rxe3 {[%clk 0:00:13]}  Bc5 {[%clk 0:00:18]} 31. Re2 {[%clk 0:00:12]}  Rxe2 {[%clk 0:00:19]} 32. Bxe2 {[%clk 0:00:13]}  Bxa3 {[%clk 0:00:19]} 33. Ba6 {[%clk 0:00:10]}  Kf8 {[%clk 0:00:19]} 34. Kg2 {[%clk 0:00:11]}  Ke7 {[%clk 0:00:19]} 35. Kf3 {[%clk 0:00:11]}  Bc5 {[%clk 0:00:19]} 36. Ke2 {[%clk 0:00:10]}  Kd6 {[%clk 0:00:20]} 37. f4 {[%clk 0:00:07]}  f5 {[%clk 0:00:18]} 38. Kf3 {[%clk 0:00:07]}  Bd4 {[%clk 0:00:17]} 39. g4 {[%clk 0:00:07]}  fxg4+ {[%clk 0:00:14]} 40. Kxg4 {[%clk 0:00:08]}  Bf6 {[%clk 0:00:15]} 41. Kf5 {[%clk 0:00:06]}  Kc5 {[%clk 0:00:15]} 42. Ke4 {[%clk 0:00:05]}  Kb6 {[%clk 0:00:16]} 43. Bc4 {[%clk 0:00:05]}  a5 {[%clk 0:00:16]} 44. Kd3 {[%clk 0:00:05]}  Kc5 {[%clk 0:00:16]} 45. Bf7 {[%clk 0:00:05]}  a4 {[%clk 0:00:16]} 46. f5 {[%clk 0:00:04]}  a3 {[%clk 0:00:16]} 47. Ke4 {[%clk 0:00:03]}  h5 {[%clk 0:00:16]} 48. Kf3 {[%clk 0:00:01]}  h4 {[%clk 0:00:16]} 49. Kg4 {[%clk 0:00:01]}  Kb4 {[%clk 0:00:17]} 50. Be6 {[%clk 0:00:01]}  Kc3 {[%clk 0:00:17]} 51. Kh3 {[%clk 0:00:02]}  Kb2 {[%clk 0:00:17]} 0-1


[Site "https://www.chess.com"]